Cogmind - Beta 13 X1 @@@ ROGUE MODE // 2023.08.14 @ 08:36:30 Player: VR-DUX Result: Destroyed by P-70 Sage with High-powered Shock Rifle Performance ------------- Evolutions (5) 2500 Regions Visited (18) 3600 Robots Destroyed (76) 380 Value Destroyed (1840) 1840 Prototype IDs (43) 860 Alien Tech Used (0) 0 Bonus (1028) 1028 TOTAL SCORE: 10208 Bonus ------- Aligned with FarCom 300 Met Warlord at Base 500 MAIN.C Attacked Warlord 500 Friendly Fire -272 Cogmind --------- Core Integrity 0/1000 Matter 248/300 Energy 94/100 System Corruption 12% Temperature Cool (0) Movement Core (50) Location -4/Proximity Caves Parts ------- > --- POWER (1) -------- (None) > --- PROPULSION (7) --- (None) > --- UTILITY (7) ------ (None) > --- WEAPON (2) ------- (None) > --- INVENTORY (5) ---- Backup Power III Vortex Cannon (25) Vortex Catalyst Activator (10) RU-N14's Throwing Claymores v3 (10) Peak State ------------ > --- POWER ------------ Micro Nuclear Core > --- PROPULSION ------- Nuclear Pulse Thruster Nuclear Pulse Array Nuclear Pulse Array Cooled Impulse Thruster Cooled Impulse Thruster > --- UTILITY ---------- Medium Storage Unit Experimental Signal Interpreter Hacking Suite Hacking Suite Hacking Suite System Mapper Minesniffer Drone Bay > --- WEAPON ----------- Vortex Cannon RU-N14's Throwing Claymores v3 > --- INVENTORY -------- Backup Power III Micro Fission Core Cloaking Device Vortex Shotgun Vortex Cannon Precision Grenade Launcher Vortex Catalyst Activator RU-N14's Throwing Claymores v3 Plasma Sword [Rating: 111] Favorites ----------- Power Micro Nuclear Core Engine Light Ion Engine Power Core Micro Nuclear Core Propulsion Light Treads Treads Light Treads Leg Aluminum Leg Flight Unit Nuclear Pulse Thruster Utility Hacking Suite Device Structural Scanner Storage Medium Storage Unit Processor Experimental Signal Interpreter Hackware Hacking Suite Protection Improved Propulsion Shielding Weapon Light Cannon Energy Gun Medium Laser Energy Cannon Phase Cannon Ballistic Gun Gauss Rifle Ballistic Cannon Light Cannon Launcher Precision Grenade Launcher Special Weapon Mining Laser Impact Weapon Makeshift Hammer Slashing Weapon Ripper Build | -11 -10 -10 -10 -9 -8 -7 -6 -6 -6 -6 -5 -5 -5 -5 -5 -5 -5 -4 ------- Run | Jun Mat Min Exi Min Mat Fac Fac Low Low Zio Pro Fac Was Fac Upp Upp War Pro Slots Evolved 10 | . . . . . 4 2 2 . . . . 2 . . . . . . Power . | . . . . . . . . . . . . . . . . . . . Propulsion 5 | . . . . . 2 2 . . . . . 1 . . . . . . Utility 5 | . . . . . 2 . 2 . . . . 1 . . . . . . Weapon . | . . . . . . . . . . . . . . . . . . . Parts Attached 181 | 1 19 . 11 4 39 13 17 6 1 12 . 16 1 9 4 3 21 4 Power 12 | . 3 . 2 1 3 2 . . . . . . . . . . 1 . Engine 8 | . 3 . 2 . 2 1 . . . . . . . . . . . . Core 4 | . . . . 1 1 1 . . . . . . . . . . 1 . Reactor . | . . . . . . . . . . . . . . . . . . . Propulsion 52 | . 2 . 4 1 23 3 6 . . . . 6 . 4 1 . 2 . Treads 19 | . 2 . 2 1 14 . . . . . . . . . . . . . Leg . | . . . . . . . . . . . . . . . . . . . Wheel . | . . . . . . . . . . . . . . . . . . . Hover . | . . . . . . . . . . . . . . . . . . . Flight 33 | . . . 2 . 9 3 6 . . . . 6 . 4 1 . 2 . Utility 72 | 1 5 . 3 1 8 7 7 5 1 9 . 7 1 5 1 2 8 1 Device 46 | 1 3 . 1 1 2 4 4 5 1 5 . 5 . 3 1 2 7 1 Storage 8 | . 1 . 2 . 4 . . . . . . . . 1 . . . . Processor 4 | . 1 . . . . . . . . 3 . . . . . . . . Hackware 5 | . . . . . . 2 2 . . . . . . . . . 1 . Protection 9 | . . . . . 2 1 1 . . 1 . 2 1 1 . . . . Artifact . | . . . . . . . . . . . . . . . . . . . Weapon 45 | . 9 . 2 1 5 1 4 1 . 3 . 3 . . 2 1 10 3 Energy Gun 4 | . 1 . . . . . . . . . . . . . . . 3 . Energy Cannon 6 | . . . . . . . . 1 . . . 1 . . 1 . 2 1 Ballistic Gun 4 | . . . . . 2 . 2 . . . . . . . . . . . Ballistic Cannon 6 | . 3 . 1 . 2 . . . . . . . . . . . . . Launcher 7 | . . . . . . . 1 . . 2 . . . . 1 1 1 1 Special Weapon 6 | . 3 . 1 . . . . . . . . . . . . . 1 1 Impact Weapon 3 | . . . . . . . 1 . . 1 . . . . . . 1 . Slashing Weapon 9 | . 2 . . 1 1 1 . . . . . 2 . . . . 2 . Piercing Weapon . | . . . . . . . . . . . . . . . . . . . Special Melee Weapon . | . . . . . . . . . . . . . . . . . . . Unidentified Prototypes 20 | . . . . . 2 . . . . 7 . 1 . . . . 10 . Parts Lost 19 | . 1 . . 2 2 2 . . . . . . . . 1 . . 11 Power 3 | . . . . 1 1 . . . . . . . . . . . . 1 Propulsion 3 | . . . . . . . . . . . . . . . . . . 3 Utility 8 | . . . . . 1 2 . . . . . . . . 1 . . 4 Weapon 5 | . 1 . . 1 . . . . . . . . . . . . . 3 Highest Loss Streak 9 | . 1 . . 2 1 2 . . . . . . . . 1 . . 9 To Critical Strikes . | . . . . . . . . . . . . . . . . . . . Average Slot Usage (%) 95 | . 99 100 96 95 96 98 98 99 100 100 100 97 100 89 87 88 87 74 Engine 6 | . 14 14 12 10 6 4 . . . . . . . . . . . . Core 2 | . . . . 2 2 2 6 6 6 6 6 5 5 5 5 5 4 4 Treads 13 | . 20 28 27 28 23 . . . . . . . . . . . . . Leg 1 | . 7 . . . . . . . . . . . . . . . . . Flight 18 | . . . . . 11 46 38 40 40 40 40 40 41 31 29 29 28 25 Device 12 | . 10 14 12 14 21 13 10 5 6 6 6 7 8 6 8 11 7 5 Storage 9 | . 14 14 14 14 9 7 6 6 6 6 6 5 5 5 5 5 5 4 Processor 1 | . 3 . . . . . . . . 1 6 5 5 5 5 5 5 4 Hackware 6 | . . . . . . 2 20 20 20 20 20 17 17 17 17 17 20 15 Protection 2 | . . . . . 3 5 1 6 6 4 . 2 2 3 1 . . . Energy Gun 1 | . 2 14 5 . . . . . . . . . . . . . . . Ballistic Gun 3 | . 3 . . . 7 7 5 1 . . . . . . . . . . Ballistic Cannon 5 | . 10 14 13 14 5 . . . . . . . . . . . . . Special Weapon 1 | . 1 . 8 10 . . . . . . . . . . . . 2 . Impact Weapon 1 | . . . . . . . 5 6 6 6 6 5 5 5 5 5 1 . Slashing Weapon 3 | . 8 . . . 5 7 . . . . . 2 5 5 . . 1 4 Naked Turns 26 | . . . 1 . . . . . . . . . . . . . . 25 Heaviest Build 41 | 15 31 31 34 32 36 26 29 31 31 30 26 30 25 25 29 34 41 35 Greatest Support 89 | 20 40 40 40 43 89 28 36 34 34 34 34 40 28 43 43 43 46 46 Greatest Overweight (x) 10 | . . . 6 . 10 1 . . . . . 1 . 1 . . . . Average Overweight (x) . | . . . . . . . . . . . . . . . . . . . Largest Inventory Capacity 15 | 8 15 15 15 15 15 10 10 10 10 10 10 10 10 10 10 10 10 10 Average Capacity 12 | 8 12 15 14 15 13 10 10 10 10 10 10 10 10 9 10 10 10 9 Most Carried 15 | 6 15 15 15 15 15 10 10 10 10 10 10 10 10 10 10 9 10 10 Average Carried 11 | 4 10 15 13 14 13 9 9 9 10 9 10 9 10 9 9 9 9 9 Final Capacity 15 | 8 15 15 15 15 10 10 10 10 10 10 10 10 10 10 10 10 10 5 Final Carried 15 | 5 15 15 14 14 10 10 10 10 10 10 10 10 10 10 9 9 10 5 Class Distribution -------------------- 40% | Mutant 34% | Hacker-Sprinter 12% | Scavenger-Mutant 12% | Sprinter Dominant Class ---------------- Mutant | -10/Materials Mutant | -10/Mines Mutant | -10/Exiles Mutant | -9/Mines Scavenger-Mutant | -8/Materials Sprinter | -7/Factory Hacker-Sprinter | -6/Factory Hacker-Sprinter | -6/Lower Caves Hacker-Sprinter | -6/Lower Caves Hacker-Sprinter | -6/Zion Hacker-Sprinter | -5/Proximity Caves Hacker-Sprinter | -5/Factory Hacker-Sprinter | -5/Waste Hacker-Sprinter | -5/Factory Hacker-Sprinter | -5/Upper Caves Hacker-Sprinter | -5/Upper Caves Hacker-Sprinter | -5/Warlord Hacker-Sprinter | -4/Proximity Caves Resources | -11 -10 -10 -10 -9 -8 -7 -6 -6 -6 -6 -5 -5 -5 -5 -5 -5 -5 -4 ----------- Run | Jun Mat Min Exi Min Mat Fac Fac Low Low Zio Pro Fac Was Fac Upp Upp War Pro Matter Collected 3103 | 222 324 152 . 176 913 172 76 332 26 33 36 121 . 212 47 41 210 10 Remotely . | . . . . . . . . . . . . . . . . . . . Salvage Created 3714 | 97 354 258 . 73 1106 247 190 305 214 . . 316 . 231 92 98 . 133 Parts 168 | 6 48 9 . 5 57 17 3 . 3 . . 9 . 4 . . . 7 Haulers Intercepted 11 | . 1 . . . 5 1 . . . . . 3 . 1 . . . . Recyclers Shooed 3 | 1 . . . . 1 . 1 . . . . . . . . . . . Parts Field Recycled . | . . . . . . . . . . . . . . . . . . . Retrieved Matter . | . . . . . . . . . . . . . . . . . . . Parts Self-Destructed 8 | . . . . . . . . . 3 . . . . . . . . 5 Prevented 4 | . . . . . . . . 2 . . . . . . . . . 2 Kills | -11 -10 -10 -10 -9 -8 -7 -6 -6 -6 -6 -5 -5 -5 -5 -5 -5 -5 -4 ------- Run | Jun Mat Min Exi Min Mat Fac Fac Low Low Zio Pro Fac Was Fac Upp Upp War Pro Combat Hostiles Destroyed 37 | . 8 4 . 3 14 . 3 . . . . . . . . . . 5 Melee 1 | . . . . . . . . . . . . . . . . . . 1 Guns 12 | . 2 1 . . 8 . 1 . . . . . . . . . . . Cannons 18 | . 6 3 . 3 5 . . . . . . . . . . . . 1 AOE 6 | . . . . . 1 . 2 . . . . . . . . . . 3 Classes Destroyed 15 | 2 6 . . . 2 . . 2 . . . . . . . . . 3 Builder 7 | . 4 . . . 1 1 . . . . . 1 . . . . . . Tunneler 2 | 1 1 . . . . . . . . . . . . . . . . . Hauler 11 | . 1 . . . 5 1 . . . . . 3 . 1 . . . . Recycler 8 | 1 . 1 . . 3 1 1 . . . . . . 1 . . . . Operator 2 | . 1 . . . . 1 . . . . . . . . . . . . Drone 2 | . . . . . . . . . . . . . . . . . . 2 Watcher 9 | . 3 . . . 3 2 1 . . . . . . . . . . . Swarmer 9 | . 3 . . . 3 . 3 . . . . . . . . . . . Grunt 18 | . 5 4 . 3 5 . . . . . . . . . . . . 1 Sentry 3 | . . . . . 3 . . . . . . . . . . . . . Demolisher 1 | . . . . . . . . . . . . . . . . . . 1 Hunter 3 | . . . . . 3 . . . . . . . . . . . . . Programmer 1 | . . . . . . . . . . . . . . . . . . 1 Decomposer 12 | . . . . . . . . 2 2 . . . . . 5 3 . . Samaritan 3 | . . . . . . . . 2 . . . . . . . 1 . . Best Kill Streak 6 | 2 4 2 . 2 6 2 2 . . . . 2 . 1 . . . 2 Combat Bots Only 3 | . 3 2 . 2 3 . 2 . . . . . . . . . . 2 Max Kills in Single Turn 2 | 1 2 1 . 1 1 1 2 1 1 . . 1 . 1 1 1 . 2 Gunslinging . | . . . . . . . . . . . . . . . . . . . Exploded 2 | . . . . . 1 . 2 . . . . . . . . . . 2 Melee 1 | . . . . . . . . . . . . . . . . . . 1 Uniques/NPCs Destroyed . | . . . . . . . . . . . . . . . . . . . Combat | -11 -10 -10 -10 -9 -8 -7 -6 -6 -6 -6 -5 -5 -5 -5 -5 -5 -5 -4 -------- Run | Jun Mat Min Exi Min Mat Fac Fac Low Low Zio Pro Fac Was Fac Upp Upp War Pro Damage Taken 4015 | . 261 159 . 205 798 254 104 46 51 . . 28 . 72 95 . . 1942 Core 1283 | . 52 12 . 43 120 . 15 23 . . . . . . 18 . . 1000 Absorbed by Shields 89 | . . . . . . . . . . . . . . . . . . 89 Redirected to Shielding 180 | . . . . . 9 70 12 . 10 . . 8 . 45 26 . . . Regen/Repaired (Parts) 260 | . . . . . . . . . . 116 . . . 135 . . 9 . Core Remaining (%) 86 | 100 . . . 57 78 100 . . . . 95 . . . . . . . Volleys Fired 270 | 4 62 11 . 21 121 14 11 . . . . 6 . . 1 . 1 18 Largest 2 | 2 2 2 . 1 1 1 1 . . . . 1 . . 1 . 1 1 Hottest 100 | 70 100 85 . 35 39 28 39 . . . . 85 . . 36 . 50 50 Shots Fired 298 | 8 74 22 . 21 121 14 11 . . . . 6 . . 2 . 1 18 Gun 136 | 8 26 11 . . 76 14 1 . . . . . . . . . . . Cannon 144 | . 47 11 . 21 45 . . . . . . 6 . . 1 . 1 12 Launcher 15 | . . . . . . . 10 . . . . . . . 1 . . 4 Special 3 | . 1 . . . . . . . . . . . . . . . . 2 Kinetic 232 | 4 60 11 . 21 121 14 1 . . . . . . . . . . . Thermal 36 | 4 14 11 . . . . . . . . . 6 . . 1 . . . Explosive 17 | . . . . . . . 10 . . . . . . . 1 . . 6 Electromagnetic . | . . . . . . . . . . . . . . . . . . . Entropic 13 | . . . . . . . . . . . . . . . . . 1 12 Robot Hit Streak 18 | 4 8 10 . 7 18 2 3 . . . . 3 . . 4 . . 3 Robot Miss Streak 6 | 1 3 1 . 2 4 3 6 . . . . 1 . . 1 . . 2 Penetration Max 1 | . . . . . 1 . . . . . . . . . . . . . Secondary Targets . | . . . . . . . . . . . . . . . . . . . Shots Hit Robots 230 | 6 53 17 . 14 84 9 7 7 5 . . 8 . 4 5 4 . 7 Core Hits 110 | 3 21 9 . 4 42 4 5 . 2 . . 3 . 2 1 . . 14 Critical Kills 3 | . . . . . 3 . . . . . . . . . . . . . Critical Parts Destroyed 4 | . . . . . . . . 2 1 . . . . . . 1 . . Critical Strikes 14 | . 4 1 . . 3 . . 2 1 . . . . 1 . 1 . 1 Burn 1 | . 1 . . . . . . . . . . . . . . . . . Destroy 3 | . . . . . 3 . . . . . . . . . . . . . Blast 4 | . 3 1 . . . . . . . . . . . . . . . . Smash 4 | . . . . . . . . 2 1 . . . . . . 1 . . Sever 1 | . . . . . . . . . . . . . . 1 . . . . Sunder 1 | . . . . . . . . . . . . . . . . . . 1 Melee Attacks 150 | . 3 . . . 31 34 31 9 5 1 1 6 . 14 4 4 5 2 Impact 56 | . . . . . . . 24 9 5 1 1 4 . 4 4 4 . . Slashing 94 | . 3 . . . 31 34 7 . . . . 2 . 10 . . 5 2 Piercing . | . . . . . . . . . . . . . . . . . . . Sneak Attacks 25 | . . . . . 1 4 1 4 2 . . 2 . 2 4 4 . 1 Combat Hostiles 1 | . . . . . . . . . . . . . . . . . . 1 Follow-up Attacks 1 | . . . . . . . . . . . . . . 1 . . . . Damage Inflicted 8055 | 76 884 275 . 243 1740 415 602 714 521 . . 431 . 286 517 405 . 946 Guns 1528 | 76 268 122 . . 943 97 22 . . . . . . . . . . . Cannons 2194 | . 616 153 . 243 570 . . . . . . 151 . . . . . 461 Explosions 818 | . . . . . 54 . 315 . . . . . . . 64 . . 385 Melee 3515 | . . . . . 173 318 265 714 521 . . 280 . 286 453 405 . 100 Ramming . | . . . . . . . . . . . . . . . . . . . Kinetic 2812 | 38 746 153 . 243 1513 97 22 . . . . . . . . . . . Thermal 449 | 38 138 122 . . . . . . . . . 151 . . . . . . Explosive 764 | . . . . . . . 315 . . . . . . . 64 . . 385 Electromagnetic 54 | . . . . . 54 . . . . . . . . . . . . . Impact 2445 | . . . . . . . 72 714 521 . . 280 . . 453 405 . . Slashing 1070 | . . . . . 173 318 193 . . . . . . 286 . . . 100 Piercing . | . . . . . . . . . . . . . . . . . . . Entropic 461 | . . . . . . . . . . . . . . . . . . 461 Highest Corruption 12 | . 1 1 1 1 . 5 2 2 . . . . 9 9 4 4 4 12 Average Corruption 2 | . 1 1 1 1 . 4 1 1 . . . . 9 5 4 4 4 6 Corruption Purged 9 | . . . . . . . . 2 . . . . . 7 . . . . Corruption Blocked . | . . . . . . . . . . . . . . . . . . . Effects 44 | . 7 1 2 5 . 6 2 2 . . . . 1 8 2 3 2 3 Message Errors 9 | . . . . 2 . 2 . . . . . . . 3 . 1 . 1 Matter Fused 15 | . 2 1 2 1 . 1 1 2 . . . . 1 3 . . . 1 Heat Flow Errors 6 | . 1 . . 1 . 1 . . . . . . . . . . 2 1 Energy Discharges 2 | . . . . . . . . . . . . . . 1 1 . . . Parts Rejected 1 | . . . . . . . 1 . . . . . . . . . . . Parts Fused 2 | . 2 . . . . . . . . . . . . . . . . . Data Loss (minor) 4 | . 1 . . . . 1 . . . . . . . 1 . 1 . . Data Loss (major) 2 | . . . . . . 1 . . . . . . . . . 1 . . Misfires 1 | . . . . . . . . . . . . . . . 1 . . . Alerts 1 | . . . . 1 . . . . . . . . . . . . . . Weapon Failures 1 | . 1 . . . . . . . . . . . . . . . . . Overload Shots . | . . . . . . . . . . . . . . . . . . . Overflow Damage 2249 | . 26 . . . . 142 131 569 291 . . 120 . 78 426 376 . 90 Projectiles 46 | . 26 . . . . . . . . . . . . . . . . 20 Explosions 32 | . . . . . . . 14 . . . . . . . 18 . . . Melee 2171 | . . . . . . 142 117 569 291 . . 120 . 78 408 376 . 70 Knockbacks 21 | . 6 1 . 6 5 . . 3 . . . . . . . . . . Impact 3 | . . . . . . . . 3 . . . . . . . . . . Kinetic 17 | . 6 1 . 5 5 . . . . . . . . . . . . . Secondary 1 | . . . . 1 . . . . . . . . . . . . . . Self-Inflicted Damage 85 | . . . . . 23 . 7 . . . . . . . 55 . . . Shots 3 | . . . . . 1 . 1 . . . . . . . 1 . . . Rammed . | . . . . . . . . . . . . . . . . . . . Targets Rammed . | . . . . . . . . . . . . . . . . . . . Kicked . | . . . . . . . . . . . . . . . . . . . Crushed . | . . . . . . . . . . . . . . . . . . . Highest Temperature 360 | 36 126 171 . 193 11 305 82 156 127 274 258 301 . . 71 . 360 125 Average Temperature 69 | 19 37 77 . 31 3 64 30 60 48 96 133 76 . . 37 . 165 33 Received Heat Transfer 613 | . 102 90 . 120 216 . . 18 15 . . . . . . . . 52 Effects 3 | . . . . . . 2 . . . . 1 . . . . . . . Energy Bleed 1 | . . . . . . 1 . . . . . . . . . . . . Interference 1 | . . . . . . . . . . . 1 . . . . . . . Short Circuit 1 | . . . . . . 1 . . . . . . . . . . . . Siege Activations . | . . . . . . . . . . . . . . . . . . . Robots Corrupted . | . . . . . . . . . . . . . . . . . . . Combat Hostiles . | . . . . . . . . . . . . . . . . . . . Parts Fried 22 | . . . . . . . 2 10 . . . 1 . . 5 3 . 1 Impact Corruptions 59 | . . . . . . . 2 20 13 . . 3 . . 8 13 . . Robots Melted . | . . . . . . . . . . . . . . . . . . . Combat Hostiles . | . . . . . . . . . . . . . . . . . . . Parts Melted 2 | 1 . . . . . . . . . . . 1 . . . . . . Heat Transferred 1110 | 111 481 333 . . . . . . . . . 185 . . . . . . Parts Sabotaged . | . . . . . . . . . . . . . . . . . . . Parts Stolen . | . . . . . . . . . . . . . . . . . . . Parts Stripped . | . . . . . . . . . . . . . . . . . . . Power Chain Reactions . | . . . . . . . . . . . . . . . . . . . Missiles Intercepted . | . . . . . . . . . . . . . . . . . . . Alert | -11 -10 -10 -10 -9 -8 -7 -6 -6 -6 -6 -5 -5 -5 -5 -5 -5 -5 -4 ------- Run | Jun Mat Min Exi Min Mat Fac Fac Low Low Zio Pro Fac Was Fac Upp Upp War Pro Peak Influence 469 | 10 233 82 . 50 469 332 355 . . . . 77 56 90 . . . . Initial 193 | . 6 12 . . 19 193 94 . . . . . 26 39 . . . . Average 120 | 6 92 28 . 13 180 233 172 . . . . 24 33 52 . . . . Maximum Alert Level 2 | . 1 . . . 2 1 1 . . . . . . . . . . . Low Security (%) 78 | 100 90 100 . 100 61 33 85 . . . . 100 100 100 . . . . Level 1 19 | . 9 . . . 32 66 14 . . . . . . . . . . . Level 2 1 | . . . . . 6 . . . . . . . . . . . . . Level 3 . | . . . . . . . . . . . . . . . . . . . Level 4 . | . . . . . . . . . . . . . . . . . . . Level 5 . | . . . . . . . . . . . . . . . . . . . High Security . | . . . . . . . . . . . . . . . . . . . Max Security . | . . . . . . . . . . . . . . . . . . . Squads Dispatched 10 | . 1 . . . 3 3 2 . . . . . . 1 . . . . Investigation 7 | . . . . . 2 3 2 . . . . . . . . . . . Extermination 1 | . . . . . . . . . . . . . . 1 . . . . Reinforcement 2 | . 1 . . . 1 . . . . . . . . . . . . . Assault . | . . . . . . . . . . . . . . . . . . . Garrison . | . . . . . . . . . . . . . . . . . . . Intercept . | . . . . . . . . . . . . . . . . . . . Searches Triggered . | . . . . . . . . . . . . . . . . . . . Construction Impeded . | . . . . . . . . . . . . . . . . . . . Haulers Reinforced . | . . . . . . . . . . . . . . . . . . . Active Scanning Responses . | . . . . . . . . . . . . . . . . . . . Cargo Convoy Interrupts . | . . . . . . . . . . . . . . . . . . . Stealth | -11 -10 -10 -10 -9 -8 -7 -6 -6 -6 -6 -5 -5 -5 -5 -5 -5 -5 -4 --------- Run | Jun Mat Min Exi Min Mat Fac Fac Low Low Zio Pro Fac Was Fac Upp Upp War Pro Distress Signals 11 | . . . . . 5 . . . . . . . . . . . 1 5 Communications Jammed . | . . . . . . . . . . . . . . . . . . . Distress Signals . | . . . . . . . . . . . . . . . . . . . Times Spotted 148 | . 15 4 . 3 38 10 12 5 8 . . 5 2 5 6 . 12 23 Peak Tracking Total 12 | . 3 2 . 3 7 4 7 6 5 . . 4 2 5 6 . 6 12 Tactical Retreats 29 | . 1 . . . 5 2 6 . 4 . . 1 . 1 2 . . 7 Traps | -11 -10 -10 -10 -9 -8 -7 -6 -6 -6 -6 -5 -5 -5 -5 -5 -5 -5 -4 ------- Run | Jun Mat Min Exi Min Mat Fac Fac Low Low Zio Pro Fac Was Fac Upp Upp War Pro Traps Triggered 10 | . 2 . . . 2 1 . . . . . 3 . . . . . 2 Indirectly . | . . . . . . . . . . . . . . . . . . . Trap Hack Attempts . | . . . . . . . . . . . . . . . . . . . Triggered . | . . . . . . . . . . . . . . . . . . . Disarmed . | . . . . . . . . . . . . . . . . . . . Reprogrammed . | . . . . . . . . . . . . . . . . . . . Reused . | . . . . . . . . . . . . . . . . . . . Traps Extracted . | . . . . . . . . . . . . . . . . . . . Installed . | . . . . . . . . . . . . . . . . . . . Triggered 11 | . . . . . . . . 1 . . . . . . . . 9 1 Machines | -11 -10 -10 -10 -9 -8 -7 -6 -6 -6 -6 -5 -5 -5 -5 -5 -5 -5 -4 ---------- Run | Jun Mat Min Exi Min Mat Fac Fac Low Low Zio Pro Fac Was Fac Upp Upp War Pro Machines Disabled 11 | . 1 . . . 3 . 4 2 . . . . . . . . 1 . Max in Single Turn 4 | . 1 . . . 2 . 4 1 . . . . . . . . 1 . Garrison Access 1 | . . . . . . . . . . . . 1 . . . . . . Machines Repaired . | . . . . . . . . . . . . . . . . . . . Machines Sabotaged . | . . . . . . . . . . . . . . . . . . . Overloaded Fab Kills . | . . . . . . . . . . . . . . . . . . . Hacking | -11 -10 -10 -10 -9 -8 -7 -6 -6 -6 -6 -5 -5 -5 -5 -5 -5 -5 -4 --------- Run | Jun Mat Min Exi Min Mat Fac Fac Low Low Zio Pro Fac Was Fac Upp Upp War Pro Machines Accessed 42 | . 9 . 2 . 4 8 3 . . . . 3 . 6 . . 7 . Terminals 22 | . 6 . . . 4 6 1 . . . . 2 . 3 . . . . Fabricators . | . . . . . . . . . . . . . . . . . . . Repair Stations 3 | . 1 . . . . . . . . . . . . 2 . . . . Recycling Units 7 | . 2 . . . . 2 2 . . . . . . 1 . . . . Scanalyzers . | . . . . . . . . . . . . . . . . . . . Garrison Access 1 | . . . . . . . . . . . . 1 . . . . . . Total Hacks 76 | . 22 . 2 . 6 15 8 . . . . 4 . 8 . . 11 . Successful 40 | . 11 . 2 . 3 2 4 . . . . 2 . 5 . . 11 . Failed 36 | . 11 . . . 3 13 4 . . . . 2 . 3 . . . . Catastrophic 13 | . 1 . . . 1 8 2 . . . . . . 1 . . . . Database Lockouts . | . . . . . . . . . . . . . . . . . . . Manual 44 | . 14 . 1 . 5 16 3 . . . . 2 . 3 . . . . Terminals 40 | . 14 . . . 6 12 3 . . . . 2 . 3 . . . . Fabricators . | . . . . . . . . . . . . . . . . . . . Repair Stations 6 | . 2 . . . . . . . . . . . . 4 . . . . Recycling Units 15 | . 6 . . . . 3 5 . . . . . . 1 . . . . Scanalyzers . | . . . . . . . . . . . . . . . . . . . Garrison Access 2 | . . . . . . . . . . . . 2 . . . . . . Terminal Hacks 22 | . 7 . 2 . 2 . . . . . . . . . . . 11 . Record 10 | . . . 1 . . . . . . . . . . . . . 9 . Robot Analysis 5 | . 5 . . . . . . . . . . . . . . . . . Open Door 2 | . . . . . . . . . . . . . . . . . 2 . Branch Access Points 2 | . 1 . . . 1 . . . . . . . . . . . . . Hauler Manifests 1 | . 1 . . . . . . . . . . . . . . . . . Zone Layout 1 | . . . . . 1 . . . . . . . . . . . . . Derelict Proto ID Bank 1 | . . . 1 . . . . . . . . . . . . . . . Fabricator Hacks . | . . . . . . . . . . . . . . . . . . . Repair Station Hacks 5 | . 1 . . . . . . . . . . . . 4 . . . . Scan Component 3 | . 1 . . . . . . . . . . . . 2 . . . . Repair 2 | . . . . . . . . . . . . . . 2 . . . . Recycling Unit Hacks 9 | . 2 . . . . 2 4 . . . . . . 1 . . . . Retrieve Components 9 | . 2 . . . . 2 4 . . . . . . 1 . . . . Scanalyzer . | . . . . . . . . . . . . . . . . . . . Garrison Access Hacks 1 | . . . . . . . . . . . . 1 . . . . . . Seal Access 1 | . . . . . . . . . . . . 1 . . . . . . Unauthorized Hacks 3 | . 1 . . . 1 . . . . . . 1 . . . . . . Terminals 3 | . 1 . . . 1 . . . . . . 1 . . . . . . Botnet 3 | . 1 . . . 1 . . . . . . 1 . . . . . . Fabricators . | . . . . . . . . . . . . . . . . . . . Repair Stations . | . . . . . . . . . . . . . . . . . . . Recycling Units . | . . . . . . . . . . . . . . . . . . . Scanalyzers . | . . . . . . . . . . . . . . . . . . . Garrison Access . | . . . . . . . . . . . . . . . . . . . Data Cores Recovered 2 | . 1 . . . . 1 . . . . . . . . . . . . Used 1 | . . . . . . 1 . . . . . . . . . . . . Hacking Detections 30 | . 9 . . . 3 8 3 . . . . 2 . 5 . . . . Full Trace Events 6 | . . . . . 1 3 2 . . . . . . . . . . . Feedback Events 3 | . . . . . . 1 2 . . . . . . . . . . . Corruption 3 | . . . . . . 1 2 . . . . . . . . . . . Feedback Blocked . | . . . . . . . . . . . . . . . . . . . Robot Schematics Acquired 3 | . . . . . . . . . . 3 . . . . . . . . Robots Built . | . . . . . . . . . . . . . . . . . . . Authchips . | . . . . . . . . . . . . . . . . . . . Time . | . . . . . . . . . . . . . . . . . . . Total Robot Build Rating . | . . . . . . . . . . . . . . . . . . . Part Schematics Acquired 14 | . . . . . . . . . . 14 . . . . . . . . Parts Built . | . . . . . . . . . . . . . . . . . . . Authchips . | . . . . . . . . . . . . . . . . . . . Time . | . . . . . . . . . . . . . . . . . . . Total Part Build Rating . | . . . . . . . . . . . . . . . . . . . Parts Repaired 2 | . . . . . . . . . . . . . . 2 . . . . Time 58 | . . . . . . . . . . . . . . 58 . . . . Parts Recycled . | . . . . . . . . . . . . . . . . . . . Recycled Matter . | . . . . . . . . . . . . . . . . . . . Retrieved Matter . | . . . . . . . . . . . . . . . . . . . Retrieved Components 21 | . 11 . . . . . 8 . . . . . . 2 . . . . Parts Scanalyzed . | . . . . . . . . . . . . . . . . . . . Part Schematics Acquired . | . . . . . . . . . . . . . . . . . . . Parts Damaged . | . . . . . . . . . . . . . . . . . . . Bothacking | -11 -10 -10 -10 -9 -8 -7 -6 -6 -6 -6 -5 -5 -5 -5 -5 -5 -5 -4 ------------ Run | Jun Mat Min Exi Min Mat Fac Fac Low Low Zio Pro Fac Was Fac Upp Upp War Pro Used RIF Installer . | . . . . . . . . . . . . . . . . . . . Robots Hacked . | . . . . . . . . . . . . . . . . . . . Non-combat . | . . . . . . . . . . . . . . . . . . . Combat . | . . . . . . . . . . . . . . . . . . . Robot Hacks Applied . | . . . . . . . . . . . . . . . . . . . Relay Couplers Released . | . . . . . . . . . . . . . . . . . . . Fabnet Peak Effective % . | . . . . . . . . . . . . . . . . . . . Robots Rewired . | . . . . . . . . . . . . . . . . . . . Allies Hacked . | . . . . . . . . . . . . . . . . . . . Hacks Repelled . | . . . . . . . . . . . . . . . . . . . Allies | -11 -10 -10 -10 -9 -8 -7 -6 -6 -6 -6 -5 -5 -5 -5 -5 -5 -5 -4 -------- Run | Jun Mat Min Exi Min Mat Fac Fac Low Low Zio Pro Fac Was Fac Upp Upp War Pro Total Allies 1 | . . . . . . . . . . . . . 1 . . . . . Largest Group 1 | . . . . . . . . . . . . . 1 . . . . . Highest-Rated Group 31 | . . . . . . . . . . . . . 31 . . . . . Highest-Rated Ally 31 | . . . . . . . . . . . . . 31 . . . . . Total Orders 9 | . . . . 2 . 4 . . . . . . . 1 . 2 . . ROAM 1 | . . . . . . . . . . . . . . . . 1 . . EXPLORE 5 | . . . . 1 . 3 . . . . . . . . . 1 . . RETURN 3 | . . . . 1 . 1 . . . . . . . 1 . . . . Ally Attacks . | . . . . . . . . . . . . . . . . . . . Total Damage . | . . . . . . . . . . . . . . . . . . . Kills . | . . . . . . . . . . . . . . . . . . . Allies Corrupted . | . . . . . . . . . . . . . . . . . . . Allies Melted . | . . . . . . . . . . . . . . . . . . . Intel | -11 -10 -10 -10 -9 -8 -7 -6 -6 -6 -6 -5 -5 -5 -5 -5 -5 -5 -4 ------- Run | Jun Mat Min Exi Min Mat Fac Fac Low Low Zio Pro Fac Was Fac Upp Upp War Pro Robot Analysis Total 5 | . 5 . . . . . . . . . . . . . . . . . Derelict Logs Recovered 10 | . . 1 . 1 . . . . 1 2 1 . . . . 2 . 2 Drone Launches 7 | . . . . 1 . 3 . . . . . . . 1 . 2 . . Drone Recoveries 5 | . . . . 1 . 2 . . . . . . . 1 . 1 . . Exploration | -11 -10 -10 -10 -9 -8 -7 -6 -6 -6 -6 -5 -5 -5 -5 -5 -5 -5 -4 ------------- Run | Jun Mat Min Exi Min Mat Fac Fac Low Low Zio Pro Fac Was Fac Upp Upp War Pro Turns Passed 7924 | 36 1190 451 514 658 1715 556 645 195 77 308 97 173 21 453 94 131 367 243 Spaces Moved 11278 | 18 651 213 311 358 1417 1164 1313 599 247 926 367 396 73 943 290 399 976 617 Core 52 | . . . 2 . 1 . . . . . . . . . . . . 49 Treads 1817 | . 451 213 302 358 493 . . . . . . . . . . . . . Legs 218 | 18 200 . . . . . . . . . . . . . . . . . Wheels . | . . . . . . . . . . . . . . . . . . . Hover . | . . . . . . . . . . . . . . . . . . . Flight 9191 | . . . 7 . 923 1164 1313 599 247 926 367 396 73 943 290 399 976 568 Fastest Speed 20 | 120 120 160 32 160 26 20 22 24 24 24 24 21 27 27 27 27 26 26 Average Speed 49 | 120 147 160 157 160 73 22 26 24 24 24 24 24 27 27 27 27 26 28 Slowest Speed 550 | 120 160 160 350 160 550 104 29 27 24 24 24 106 27 112 27 27 29 50 Overloaded Moves . | . . . . . . . . . . . . . . . . . . . Propulsion Burnouts . | . . . . . . . . . . . . . . . . . . . Robots Hopped 7 | . . . . . 1 . 4 . . . . . . . . . 2 . Cave-ins Triggered 1 | . . . . . . 1 . . . . . . . . . . . . Exploration Rate (%) 60 | 3 89 63 61 97 82 52 22 62 50 83 64 9 75 21 60 71 96 80 Regions Visited 18 Branch Regions 11 Pre-discovered Areas 3 | . . 1 . 1 . . . . . 1 . . . . . . . . Known Exits Taken 7 | . 1 . . . . . . . . 1 1 . . 1 1 1 1 . Unknown Exits Taken 9 | 1 . 1 1 1 1 1 1 1 1 . . . . . . . . . Scrap Searched 15 | . . 1 . 3 . . . 4 . 1 2 . . . 1 1 . 2 Spaces Dug 91 | . 2 . . . 26 30 23 2 . . 1 2 . 5 . . . . Terrain Destroyed 260 | . 2 . . . 27 30 93 2 . . 1 3 . 5 12 . . 85 Melee 90 | . 1 . . . 26 30 23 2 . . 1 2 . 5 . . . . Projectile 11 | . 1 . . . 1 . . . . . . 1 . . 1 . . 7 AOE 159 | . . . . . . . 70 . . . . . . . 11 . . 78 Terrain Rammed . | . . . . . . . . . . . . . . . . . . . Walls Destroyed . | . . . . . . . . . . . . . . . . . . . Machines Disabled . | . . . . . . . . . . . . . . . . . . . Actions | -11 -10 -10 -10 -9 -8 -7 -6 -6 -6 -6 -5 -5 -5 -5 -5 -5 -5 -4 --------- Run | Jun Mat Min Exi Min Mat Fac Fac Low Low Zio Pro Fac Was Fac Upp Upp War Pro Total 13151 | 25 799 302 331 421 1952 1396 1544 633 254 1011 374 456 73 1126 298 416 1076 664 Wait 1040 | . 24 77 . 38 274 160 156 12 2 52 7 28 . 140 . 11 42 17 Move 11249 | 17 650 212 310 357 1414 1163 1305 598 246 925 366 396 72 942 289 398 972 617 Hop 5 | . . . . . 1 . 3 . . . . . . . . . 1 . Pick Up 105 | 1 23 1 6 1 27 6 8 3 . 6 . 2 . 13 . . 8 . Fast Attach 72 | 1 5 . 10 1 14 2 3 2 . 9 . 5 . 4 . . 16 . Attach 43 | . 6 . . 1 14 4 5 1 . 1 . 4 . 2 1 . 1 3 Detach 12 | . . . 3 . 5 . 1 . . . . 1 . 1 . . 1 . Swap 66 | . 8 . 1 2 11 7 9 3 1 2 . 7 1 3 3 3 4 1 Drop 138 | 2 18 1 1 . 40 6 12 5 . 15 . 2 . 11 . . 25 . Fire 270 | 4 62 11 . 21 121 14 11 . . . . 6 . . 1 . 1 18 Melee 145 | . 3 . . . 31 34 31 9 5 1 1 5 . 10 4 4 5 2 Ram . | . . . . . . . . . . . . . . . . . . . Kick . | . . . . . . . . . . . . . . . . . . . Crush . | . . . . . . . . . . . . . . . . . . . Escape Stasis 6 | . . . . . . . . . . . . . . . . . . 6 Rewire . | . . . . . . . . . . . . . . . . . . . Trap . | . . . . . . . . . . . . . . . . . . . Miscellaneous . | . . . . . . . . . . . . . . . . . . . Route ------- -11/Junkyard -10/Materials (discovered 6 exits: [*Mat x3] / *Min x2 / [*Sub]) -10/Mines (discovered 3 exits: [*Mat] / *Exi / [*Sub]) -10/Exiles -9/Mines (discovered 2 exits: *Mat x2) -8/Materials (discovered 2 exits: *Fac x2) -7/Factory (discovered 3 exits: *Fac x2 / [*Low]) -6/Factory -6/Lower Caves -6/Lower Caves -6/Zion (discovered 2 exits: Dee / *Pro) -5/Proximity Caves -5/Factory -5/Waste -5/Factory -5/Upper Caves -5/Upper Caves (discovered 2 exits: [*Fac] / *War) -5/Warlord -4/Proximity Caves (discovered 1 exit: [*Fac]) History --------- Turn | Location | Event 1 | -11/Junkyard | Discovered new exit (range 3) 37 | -11/Junkyard | Entered Materials 203 | -10/Materials | Discovered new exit (range 9) 226 | -10/Materials | Identified exit to Mines 268 | -10/Materials | Discovered new exit (range 16) 300 | -10/Materials | Build established: Mutant 560 | -10/Materials | Discovered new exit (range 8) 765 | -10/Materials | Discovered new exit (range 16) 1227 | -10/Materials | Entered Mines 1334 | -10/Mines | Discovered new exit (range 14) 1523 | -10/Mines | Learned location of Mines (-9) 1528 | -10/Mines | Discovered new exit (range 9) 1672 | -10/Mines | Deemed a non-threat by the Exiles lab entrance 1672 | -10/Mines | Discovered new exit (range 5) 1678 | -10/Mines | Entered Exiles 1725 | -10/Exiles | Met 8R-AWN 1747 | -10/Exiles | Met EX-HEX 1797 | -10/Exiles | Met EX-BIN 1814 | -10/Exiles | Aligned with FarCom system 1816 | -10/Exiles | Given EX-Vault access code 1853 | -10/Exiles | Opened EX-Vault 1862 | -10/Exiles | Released all parts (7) 1974 | -10/Exiles | Warned to stay clear of 0b10 Research branches 2033 | -10/Exiles | Found Supersonic Drone Bay 2111 | -10/Exiles | Met EX-DEC 2180 | -10/Exiles | Discovered new exit (range 10) 2192 | -10/Exiles | Left Exiles lab with Supersonic Drone Bay 2192 | -10/Exiles | Entered Mines 2206 | -9/Mines | Discovered new exit (range 57) 2280 | -9/Mines | Learned Materials security intel 2421 | -9/Mines | Learned location of Storage (-7) 2807 | -9/Mines | A weapon hastily lodged in a ceiling crevice suddenly fell to the ground 2833 | -9/Mines | Discovered new exit (range 5) 2850 | -9/Mines | Entered Materials 2850 | -8/Materials | Evolved 4 slots: Propulsion x2, Utility x2 3363 | -8/Materials | Build established: Scavenger-Mutant 4079 | -8/Materials | Discovered new exit (range 3) 4268 | -8/Materials | Discovered new exit (range 5) 4565 | -8/Materials | Entered Factory 4565 | -7/Factory | Evolved 2 slots: Propulsion x2 4903 | -7/Factory | Discovered new exit (range 8) 4945 | -7/Factory | Discovered new exit (range 15) 4973 | -7/Factory | Build established: Sprinter 4982 | -7/Factory | Crushed by falling debris 4983 | -7/Factory | Discovered new exit (range 14) 5121 | -7/Factory | Entered another Factory area 5121 | -6/Factory | Evolved 2 slots: Utility x2 5132 | -6/Factory | Discovered new exit (range 2) 5468 | -6/Factory | Build established: Hacker-Sprinter 5766 | -6/Factory | Entered Lower Caves 5767 | -6/Lower Caves | Encountered a Warlord checkpoint 5899 | -6/Lower Caves | Attracted the attention of an 0b10 checkpoint 5943 | -6/Lower Caves | Discovered new exit (range 15) 5961 | -6/Lower Caves | Entered another Lower Caves area 5963 | -6/Lower Caves | Attracted the attention of an 0b10 checkpoint 5990 | -6/Lower Caves | Encountered a Warlord checkpoint 5995 | -6/Lower Caves | Learned 4 Factory zone layouts 6031 | -6/Lower Caves | Spotted B-75 Beast 6032 | -6/Lower Caves | Discovered new exit (range 12) 6038 | -6/Lower Caves | Entered Zion 6051 | -6/Zion | Found Prototype Device 6051 | -6/Zion | Identified Phasing AFG 6160 | -6/Zion | Given the Hacking Drone Bay 6161 | -6/Zion | Found Prototype Device 6161 | -6/Zion | Identified Hacking Drone Bay 6176 | -6/Zion | Identified exit to Deep Caves 6179 | -6/Zion | Learned Factory terminal intel 6182 | -6/Zion | Found Prototype Launcher 6182 | -6/Zion | Identified Rocket Array 6208 | -6/Zion | Acquired unknown access codes intercepted by a Zionite 6243 | -6/Zion | Found Prototype Processor 6243 | -6/Zion | Identified Exp. Signal Interpreter 6245 | -6/Zion | Found Prototype Processor 6245 | -6/Zion | Identified Exp. Terrain Scan Processor 6255 | -6/Zion | Found Prototype Processor 6255 | -6/Zion | Identified Exp. Melee Analysis Suite 6296 | -6/Zion | Visited the Megawrench Repair Shop 6296 | -6/Zion | Megawrench repaired 10 parts 6344 | -6/Zion | Discovered new exit (range 10) 6346 | -6/Zion | Identified exit to Proximity Caves 6346 | -6/Zion | Entered Proximity Caves 6399 | -5/Proximity Caves | Learned Factory stockpile data 6440 | -5/Proximity Caves | Discovered new exit (range 15) 6443 | -5/Proximity Caves | Identified exit to Factory 6443 | -5/Proximity Caves | Entered Factory 6443 | -5/Factory | Evolved 2 slots: Propulsion x1, Utility x1 6446 | -5/Factory | Loaded intel: 28 terminal locations 6616 | -5/Factory | Sucked down chute 6616 | -5/Factory | Entered Waste 6617 | -5/Waste | Met a frightened Derelict 6627 | -5/Waste | Spotted C-40 Crusher 6628 | -5/Waste | Spotted C-40 Crusher 6629 | -5/Waste | Spotted C-40 Crusher 6630 | -5/Waste | Spotted C-40 Crusher 6630 | -5/Waste | Spotted C-40 Crusher 6631 | -5/Waste | EMP discharged 6632 | -5/Waste | Spotted C-40 Crusher 6634 | -5/Waste | Discovered new exit (range 11) 6637 | -5/Waste | Identified exit to Factory 6637 | -5/Waste | Entered Factory 6905 | -5/Factory | Repaired Nuclear Pulse Thruster? 6948 | -5/Factory | Repaired Med. Storage Unit 7056 | -5/Factory | Discovered new exit (range 6) 7089 | -5/Factory | Identified exit to Upper Caves 7090 | -5/Factory | Entered Upper Caves 7147 | -5/Upper Caves | Attracted the attention of an 0b10 outpost 7181 | -5/Upper Caves | Discovered new exit (range 13) 7184 | -5/Upper Caves | Identified exit to Upper Caves 7184 | -5/Upper Caves | Entered another Upper Caves area 7186 | -5/Upper Caves | Spotted B-75 Beast 7196 | -5/Upper Caves | Learned Factory non-interactive machine intel 7201 | -5/Upper Caves | Discovered new exit (range 24) 7234 | -5/Upper Caves | Encountered a Warlord checkpoint 7243 | -5/Upper Caves | Learned 8 Factory zone layouts 7285 | -5/Upper Caves | Discovered new exit (range 10) 7313 | -5/Upper Caves | Identified exit to Warlord 7315 | -5/Upper Caves | Entered Warlord 7323 | -5/Warlord | Discovered new exit (range 12) 7371 | -5/Warlord | System corruption cleaned by Quarantine Array 7405 | -5/Warlord | Visited the Vortex Lab 7406 | -5/Warlord | Found Prototype Energy Gun 7406 | -5/Warlord | Identified Vortex Shotgun 7409 | -5/Warlord | Found Prototype Energy Cannon 7409 | -5/Warlord | Identified Vortex Cannon 7410 | -5/Warlord | Warlord's base attacked by MAIN.C 7412 | -5/Warlord | Found Prototype Launcher 7412 | -5/Warlord | Identified Vortex Catalyst Activator 7417 | -5/Warlord | Found Vortex Cannon 7420 | -5/Warlord | Found Vortex Shotgun 7459 | -5/Warlord | Met Warlord 7482 | -5/Warlord | Found Prototype Hackware 7482 | -5/Warlord | Identified System Mapper 7485 | -5/Warlord | Found Prototype Device 7485 | -5/Warlord | Identified Thermal Barrier 7491 | -5/Warlord | Found Prototype Device 7491 | -5/Warlord | Identified Exp. Phase Shifter 7516 | -5/Warlord | Found Prototype Reactor 7538 | -5/Warlord | Found Prototype Special Weapon 7538 | -5/Warlord | Identified RU-N14's Throwing Claymores v3 7542 | -5/Warlord | Found RU-N14's Throwing Claymores v3 7569 | -5/Warlord | Learned Armory stockpile data 7570 | -5/Warlord | Learned Factory terminal intel 7622 | -5/Warlord | Found Prototype Device 7622 | -5/Warlord | Identified Minesniffer Drone Bay 7652 | -5/Warlord | Warlord forces counterattacked 7674 | -5/Warlord | Opened side exit 7682 | -5/Warlord | Identified exit to Proximity Caves 7682 | -5/Warlord | Entered Proximity Caves 7685 | -4/Proximity Caves | Spotter reported a threat 7739 | -4/Proximity Caves | Learned Research emergency access door positions 7766 | -4/Proximity Caves | Learned location of 1 exit from Research 7894 | -4/Proximity Caves | System corruption reached 10% 7900 | -4/Proximity Caves | Released all parts (7) 7901 | -4/Proximity Caves | Core integrity fell below 50% 7913 | -4/Proximity Caves | Core integrity fell below 20% 7924 | -4/Proximity Caves | Discovered new exit (range 10) 7925 | -4/Proximity Caves | Destroyed by P-70 Sage with High-powered Shock Rifle Last Messages --------------- 07890_ Mic. Nuclear Core destroyed. 07890_ Nuclear Pulse Thruster destroyed. 07892_ P-70 Sage resets P-70 Sage, system corruption cleaned. 07894_ Prc. Grenade Launcher destroyed. 07894_ P-70 Sage resets P-70 Sage, system corruption cleaned. 07896_ Field Laser fries itself beyond repair. 07897_ Flexi-carbon Leg fries itself beyond repair. 07897_ The unstable cave ceiling collapses. 07898_ Plasma Sword destroyed. 07900_ Released Cld. Impulse Thruster. 07900_ Released Med. Storage Unit. 07900_ Released Hacking Suite. 07900_ Released Exp. Signal Interpreter. 07900_ Released Cld. Impulse Thruster. 07900_ Released Structural Scanner. 07900_ Released RU-N14's Throwing Claymores v3. 07905_ P-70 Sage resets P-70 Sage, system corruption cleaned. 07907_ |SQAS1UPXMZ55XFGW##REZ0C25O3NC 07924_ EXIT=FOUND Map ----- +----------------------------------------------------+ | ????????????????????????????????????????????? | | ????????????????????????????????????????????? | | ????????????????????????????????????????????? | | ????????????????????????????????????????????? | | ????????????????????????????????????????????? | | ????????????????????????????????????????????? | | ????????????????????????????????????????????? | | ????????????????????????????????????????????? | | ????????????????????????????????????????????? | | ????????????????????????????????????????????? | | ????????????????????????????????????????????? | | ????????????????????????????????????????????? | | ????????????????????????????????????????????? | | ????????????????????????????????????????????? | | ????????????????????????????????????????????? | | ??????????????############??????????????????? | | ??????????????# # ??????????????????? | | ??????????????# #